bitfinex-derivatives/quotes_ETHF0:USTF0_20250317
["timestamp","ask_amount","ask_price","bid_price","bid_amount"]
[1742217258286,1.04978,1905.3,1905.2,5.46146658]
[1742217258490,1.04978,1905.3,1905.2,1.41246658]
[1742217259084,1.04977,1905.4,1905.2,2.46230658]
[1742217259285,1.04977,1905.4,1905.3,1.4046]
[1742217261792,1.04977,1905.4,1905.3,2.45438]
[1742217261992,1.04977,1905.4,1905.3,1.4046]
[1742217262587,1.04977,1905.4,1905.3,2.45438]
[1742217262992,1.04977,1905.4,1905.3,1.4046]
[1742217265000,1.04978,1905.3,1905.2,1.38226658]
[1742217265195,1.04978,1905.3,1905.2,0.00786658]
[1742217267393,4.25757,1905.4,1905.3,1.04978]
[1742217268608,1.04978,1905.3,1905.2,2.40797658]
[1742217269602,1.04978,1905.3,1905.2,1.35816658]
[1742217270419,1.04978,1905.3,1905.2,2.40800658]
[1742217270909,1.04978,1905.3,1905.2,1.35816658]
[1742217271109,2.47508,1905.3,1905.2,1.35816658]
[1742217271714,2.62479,1905.1,1904.6,1.0501]
[1742217272012,1.04993,1905.1,1905.0,1.04991]
[1742217272411,2.40913,1905.1,1905.0,1.04991]
[1742217273208,0.93624587,1905.2,1905.1,1.04989]
[1742217273417,1.04985,1905.2,1905.1,1.3689]
[1742217274309,2.40905,1905.2,1905.1,1.3689]
[1742217274818,1.04989,1905.1,1905.0,1.2868]
[1742217275112,2.45819,1905.1,1905.0,1.2868]
[1742217275511,2.45819,1905.1,1905.0,3.71215]
[1742217276207,1.04989,1905.1,1905.0,3.71215]
[1742217279010,1.04989,1905.1,1905.0,2.6622]
[1742217279511,1.04995,1905.0,1904.9,0.00786658]
[1742217279715,1.04995,1905.0,1904.9,1.05786658]
[1742217280104,1.04995,1905.0,1904.9,2.42346658]
[1742217280304,2.35895,1905.0,1904.9,2.42346658]
[1742217281912,2.35895,1905.0,1904.9,1.37346658]
[1742217282614,2.35895,1905.0,1904.9,2.42346658]
[1742217283009,2.35895,1905.0,1904.9,1.37346658]
[1742217284009,2.35895,1905.0,1904.9,2.42346658]
[1742217284213,2.35895,1905.0,1904.9,1.37346658]
[1742217286313,2.35895,1905.0,1904.9,0.00786658]
[1742217287613,1.05017,1904.6,1904.5,1.05018]
[1742217287822,1.05017,1904.6,1904.5,1.3045]
[1742217288210,3.36477919,1904.6,1904.5,1.3045]
[1742217288411,1.05022,1904.5,1904.4,30.5352]
[1742217288609,3.63922,1904.5,1904.4,29.115]
[1742217288816,1.05028,1904.4,1904.3,1.24776658]
[1742217289013,2.42638,1904.4,1904.3,1.24776658]
[1742217289521,43.22638,1904.4,1904.3,2.29809658]
[1742217289815,43.22638,1904.4,1904.3,3.71829658]
[1742217291223,1.22076658,1904.5,1904.4,1.05028]
[1742217291413,0.00786658,1904.5,1904.4,5.66508]
[1742217291609,2.3028,1904.8,1904.7,1.05011]
[1742217291924,1.0501,1904.8,1904.7,1.05011]
[1742217292223,1.05011,1904.7,1904.6,6.49615]
[1742217292525,2.4604,1904.8,1904.7,1.05011]
[1742217292715,2.4604,1904.8,1904.7,2.45711]
[1742217292910,1.4103,1904.8,1904.7,2.45711]
[1742217294024,4.26571658,1904.9,1904.8,1.05006]
[1742217294223,4.26571658,1904.9,1904.8,2.46496]
[1742217294528,0.00786658,1904.9,1904.8,2.46496]
[1742217294821,2.48546658,1904.9,1904.8,2.46496]
[1742217295021,1.43546658,1904.9,1904.8,2.46496]
[1742217296410,2.48546658,1904.9,1904.8,2.46496]
[1742217297424,2.48546658,1904.9,1904.4,29.123]
[1742217297425,1.05022,1904.5,1904.4,4.25805]
[1742217297625,1.05022,1904.5,1904.4,5.7931]
[1742217298422,3.67861,1904.6,1904.4,5.7931]
[1742217298619,2.28081,1904.6,1904.5,1.3781]
[1742217301320,1.05021,1904.6,1904.5,1.3781]
[1742217301525,1.05021,1904.6,1904.5,2.6877]
[1742217301825,1.05021,1904.6,1904.5,1.3781]
[1742217302727,1.05022,1904.5,1904.4,1.2072]
[1742217303022,1.05028,1904.4,1904.3,4.04486658]
[1742217303230,1.0505,1904.0,1903.9,29.123]
[1742217303414,1.0505,1904.0,1903.9,34.4744]
[1742217305927,1.0505,1904.0,1903.9,33.159]
[1742217306117,1.0505,1904.0,1903.9,34.20955]
[1742217306324,1.0505,1904.0,1903.9,33.159]
[1742217306622,1.0505,1904.0,1903.9,34.5421]
[1742217306928,1.0505,1904.0,1903.9,35.59265]
[1742217307322,1.0505,1904.0,1903.9,34.5421]
[1742217308328,1.0505,1904.0,1903.9,35.59265]
[1742217308526,2.35909,1904.1,1904.0,1.0505]
[1742217308725,2.35909,1904.1,1904.0,1.4066]
[1742217309524,1.05028,1904.4,1904.3,1.05033]
[1742217309720,5.53856,1904.5,1904.4,1.05028]
[1742217309919,4.4883,1904.5,1904.2,4.035]
[1742217310226,5.53855,1904.5,1904.4,1.05028]
[1742217310426,1.2805,1904.5,1904.4,1.05028]
[1742217310622,5.55336,1904.7,1904.6,1.05017]
[1742217310819,1.05017,1904.6,1904.5,2.45678]
[1742217311120,2.47687,1904.6,1904.5,1.4066]
[1742217314024,2.47687,1904.6,1904.5,2.45682]
[1742217314228,1.4267,1904.6,1904.5,2.45682]
[1742217314931,1.2954,1904.7,1904.6,1.05017]
[1742217315123,1.2954,1904.7,1904.6,2.49647]
[1742217315324,1.05790658,1904.9,1904.6,1.4463]
[1742217315527,2.36880658,1904.9,1904.8,1.05006]
[1742217315827,2.36882658,1904.9,1904.8,1.05006]
[1742217316028,0.00786658,1904.9,1904.8,6.52936]
[1742217317424,1.05786658,1904.9,1904.8,6.52936]
[1742217317627,1.38696658,1904.9,1904.8,6.52936]
[1742217318026,0.00786658,1904.9,1904.8,9.73716]
[1742217321129,3.2078,1905.5,1904.8,8.6871]
[1742217321330,1.3628,1905.4,1905.1,1.04986]
[1742217321632,41.84978,1905.3,1905.2,1.3557]
[1742217322126,2.41257,1905.4,1905.2,1.3557]
[1742217322324,1.37066658,1905.4,1905.2,2.40551]
[1742217322524,2.41258,1905.3,1905.2,2.40551]
[1742217322727,0.00786658,1905.4,1905.3,1.04978]
[1742217323234,0.00786658,1905.4,1905.3,2.27938]
[1742217323833,0.00786658,1905.4,1905.3,1.04978]
[1742217324235,1.44156658,1905.4,1905.3,1.04978]
[1742217324431,1.44156658,1905.4,1905.3,2.30548]
[1742217324630,2.75786658,1905.4,1905.3,2.30548]
[1742217325339,0.00786658,1905.4,1905.3,2.30548]
[1742217325733,1.44156658,1905.4,1905.3,2.30548]
[1742217325933,3.75769658,1905.4,1905.3,2.30548]
[1742217326135,2.70796658,1905.4,1905.3,2.30548]
[1742217326836,0.00786658,1905.4,1905.3,2.30548]
[1742217328139,1.05759658,1905.4,1905.3,2.30548]
[1742217328441,1.04984,1905.2,1905.1,0.00786658]
[1742217328739,4.25764,1905.2,1905.1,0.00786658]
[1742217328932,45.05764,1905.2,1905.1,0.00786658]
[1742217329127,47.36644,1905.2,1905.1,0.00786658]
[1742217329740,1.04999,1905.0,1904.8,3.2078]
[1742217329942,1.04999,1905.0,1904.9,1.04999]
[1742217330132,1.05,1904.9,1904.8,4.25781]
[1742217330334,1.05,1905.0,1904.9,1.05]
[1742217330739,1.04992,1905.1,1905.0,1.04991]
[1742217332141,41.8499,1905.2,1905.1,1.04989]
[1742217332334,41.8499,1905.2,1905.0,1.0499]
[1742217332335,1.04991,1905.1,1905.0,1.0499]
[1742217332943,2.31401,1905.1,1905.0,1.0499]
[1742217333940,1.2641,1905.1,1905.0,1.0499]
[1742217334348,3.21566658,1905.4,1905.3,1.04978]
[1742217334643,1.05759658,1905.4,1905.3,1.04978]
[1742217335545,1.0498,1905.3,1905.2,1.04979]
[1742217338447,1.05763658,1905.4,1905.3,1.04978]
[1742217340845,1.04997,1905.0,1904.9,1.04995]
[1742217341248,1.05,1904.9,1904.8,7.23966658]
[1742217341547,44.5119,1904.9,1904.8,0.00786658]
[1742217343249,44.5119,1904.9,1904.8,1.05792658]
[1742217343546,44.5119,1904.9,1904.8,0.00786658]
[1742217344445,44.5119,1904.9,1904.8,1.05792658]
[1742217345549,2.6619,1904.9,1904.8,1.05792658]
[1742217346052,3.7119,1904.9,1904.8,1.05792658]
[1742217346951,3.7119,1904.9,1904.8,0.00786658]
[1742217347946,2.6619,1904.9,1904.8,1.05792658]
[1742217348145,40.8,1905.1,1904.8,3.21566658]
[1742217348346,1.3213,1905.0,1904.9,2.3996]
[1742217348551,1.3213,1905.0,1904.9,5.072]
[1742217348750,1.2526,1905.1,1905.0,1.04995]
[1742217349052,1.2526,1905.1,1905.0,2.35845]
[1742217349640,2.5739,1905.1,1905.0,2.35845]
[1742217349846,1.05762658,1905.4,1905.0,5.56625]
[1742217350043,1.3213,1905.3,1905.0,6.80215]
[1742217350249,1.3213,1905.3,1905.2,1.04984]
[1742217350451,1.3213,1905.3,1905.2,5.07184]
[1742217352858,2.37108,1905.3,1905.2,5.07184]
[1742217353158,1.3213,1905.3,1905.2,5.07184]
[1742217353453,0.00786658,1905.4,1905.3,1.04978]
[1742217353653,1.39506658,1905.4,1905.3,1.04978]
[1742217353954,1.39506658,1905.4,1905.3,4.25758]
[1742217354152,0.00786658,1905.4,1905.3,4.25758]
[1742217354855,0.00786658,1905.4,1905.3,33.37458]
[1742217355152,1.2424,1905.9,1905.8,1.04951]
[1742217355545,3.68635,1905.9,1905.8,1.04951]
[1742217355756,2.6369,1905.9,1905.8,1.04951]
[1742217356151,0.00786658,1906.0,1905.9,1.04945]
[1742217356653,1.40236658,1906.0,1905.9,5.06945]
[1742217357356,0.00786658,1906.0,1905.9,5.06945]
[1742217358447,0.00786658,1906.0,1905.9,6.26975]
[1742217359952,0.00786658,1906.0,1905.9,5.06945]
[1742217360449,1.39486658,1906.0,1905.9,5.06945]
[1742217360853,2.44426658,1906.0,1905.9,4.02]
[1742217361053,2.44426658,1906.0,1905.8,4.25727]
[1742217361251,1.387,1905.9,1905.8,4.018]
[1742217361554,1.04951,1905.8,1905.7,0.00786658]
[1742217361754,1.04967,1905.5,1905.4,7.2258]
[1742217361954,4.25747,1905.5,1905.4,4.018]
[1742217362263,1.04973,1905.4,1905.3,29.117]
[1742217362464,1.04978,1905.3,1905.2,5.06681]
[1742217362761,1.04978,1905.3,1905.2,4.017]
[1742217362957,1.04984,1905.2,1905.1,0.00786658]
[1742217363157,2.43684,1905.2,1905.1,0.00786658]
[1742217364050,2.43684,1905.2,1905.1,1.05775658]
[1742217364557,2.43684,1905.2,1905.1,0.00786658]
[1742217364961,2.43684,1905.2,1905.1,1.05775658]
[1742217365658,1.387,1905.2,1905.1,1.05775658]
[1742217365858,1.387,1905.2,1905.1,2.37755658]
[1742217366059,2.43684,1905.2,1905.1,2.37755658]
[1742217366456,1.387,1905.2,1905.1,2.37755658]
[1742217367151,2.43684,1905.2,1905.1,0.00786658]
[1742217367365,1.04995,1905.0,1904.9,5.06599]
[1742217367760,1.04995,1905.0,1904.9,5.387]
[1742217367961,1.04995,1905.0,1904.9,1.371]
[1742217368466,1.04999,1905.0,1904.9,1.04998]
[1742217368655,1.05,1904.9,1904.8,37.3890744]
[1742217369058,1.05,1904.9,1904.8,30.1653044]
[1742217369659,2.461,1904.9,1904.8,30.1653044]
[1742217369862,1.411,1904.9,1904.8,30.1653044]
[1742217370365,2.461,1904.9,1904.8,30.1653044]
[1742217371067,3.7755,1904.9,1904.8,30.1653044]
[1742217371267,3.7755,1904.9,1904.8,31.4754044]
[1742217371560,3.7755,1904.9,1904.8,29.1152444]
[1742217371762,3.7755,1904.9,1904.8,0.0052444]
[1742217371968,46.15054,1904.9,1904.5,1.05018]
[1742217372270,4.03619,1904.8,1904.4,9.58315]
[1742217372462,1.05022,1904.5,1904.4,5.3251]
[1742217372668,1.05022,1904.5,1904.4,4.015]
[1742217372861,1.05028,1904.4,1904.3,30.4456]
[1742217373062,1.05028,1904.4,1904.3,29.116]
[1742217373265,2.42868,1904.4,1904.3,29.116]
[1742217373460,2.42868,1904.4,1904.3,30.4397]
[1742217373859,2.42868,1904.4,1904.3,29.116]
[1742217374860,2.42868,1904.4,1904.0,3.2078]
[1742217374861,1.05049,1904.1,1904.0,3.2078]
[1742217375165,1.05049,1904.1,1903.9,6.38822]
[1742217375363,2.3788,1904.0,1903.9,4.014]
[1742217375673,1.05055,1903.9,1903.8,8.27241]
[1742217375859,2.37885,1903.9,1903.8,7.2218]
[1742217377872,1.3283,1903.9,1903.8,7.2218]
[1742217378066,0.00786658,1904.0,1903.9,1.05055]
[1742217378269,0.00786658,1904.0,1903.9,2.44795]
[1742217380871,1.43556658,1904.0,1903.9,2.44795]
[1742217382177,0.00786658,1904.0,1903.9,2.44795]
[1742217384874,1.2946,1904.4,1904.3,1.05033]
[1742217385574,1.2045,1904.7,1904.6,1.05017]
[1742217386263,1.05017,1904.6,1904.5,5.07106658]
[1742217386463,2.6021,1904.7,1904.6,1.05017]
[1742217386668,3.65221,1904.7,1904.6,2.50367]
[1742217388474,0.00786658,1904.8,1904.7,1.05011]
[1742217388679,1.32146658,1904.8,1904.7,2.45901]
[1742217388985,2.37152658,1904.8,1904.7,2.45901]
[1742217389272,1.32146658,1904.8,1904.7,2.45901]
[1742217389476,1.2823,1905.0,1904.9,1.05]
[1742217389872,1.3136,1905.1,1905.0,1.04995]
[1742217389873,2.36349,1905.1,1905.0,1.04995]
[1742217390078,42.1136,1905.1,1904.9,2.6296]
[1742217390273,1.04995,1905.0,1904.9,3.67956]
[1742217390473,2.36355,1905.0,1904.9,2.6296]
[1742217390883,2.36355,1905.0,1904.9,3.6796]
[1742217391082,2.36355,1905.0,1904.9,2.6296]
[1742217391574,1.05,1904.9,1904.8,5.06101]
[1742217391772,2.4933,1904.9,1904.8,5.06101]
[1742217391979,2.4933,1904.9,1904.8,4.011]
[1742217392174,2.4933,1904.9,1904.8,5.06106]
[1742217392372,2.4933,1904.9,1904.8,4.011]
[1742217392676,2.4933,1904.9,1904.7,1.3664]
[1742217392677,1.05011,1904.7,1904.6,9.51092]
[1742217392873,2.238,1904.8,1904.7,1.05011]
[1742217393075,2.238,1904.8,1904.7,2.41651]
[1742217394382,1.05011,1904.7,1904.6,4.4508]
[1742217394586,2.49771,1904.7,1904.6,4.4508]
[1742217394795,1.05017,1904.6,1904.5,0.00786658]
[1742217395080,2.49777,1904.6,1904.5,0.00786658]
[1742217397886,1.05033,1904.3,1904.2,29.129]
[1742217398082,1.0505,1904.0,1903.9,5.54002]
[1742217398382,1.0505,1904.0,1903.9,6.97312]
[1742217398882,1.0505,1904.0,1903.9,3.2078]
[1742217399075,1.05055,1903.9,1903.8,4.01586658]
[1742217399282,2.43075,1903.9,1903.8,0.00786658]
[1742217399478,4.00666,1903.9,1903.4,1.05082]
[1742217399783,4.00666,1903.9,1903.4,1.3732]
[1742217399784,1.05081,1903.5,1903.4,1.3732]
[1742217399976,1.05081,1903.5,1903.4,2.42403]
[1742217400178,1.05078,1903.5,1903.4,2.424]
[1742217400379,2.43306,1903.6,1903.5,1.05078]
[1742217400583,2.43306,1903.6,1903.5,2.42398]
[1742217400985,2.43306,1903.6,1903.5,1.3732]
[1742217401286,2.43306,1903.6,1903.5,2.42398]
[1742217401485,2.43306,1903.6,1903.5,1.3732]
[1742217401688,1.05083,1903.4,1903.3,8.26665]
[1742217401887,1.05082,1903.5,1903.3,9.63985]
[1742217402084,1.05082,1903.5,1903.4,1.3732]
[1742217403586,1.05083,1903.4,1903.3,4.008]
[1742217404483,1.05081,1903.5,1903.3,8.26664]
[1742217404678,1.2109,1903.6,1903.5,1.05078]
[1742217404877,1.2109,1903.9,1903.5,3.2078]
[1742217405084,1.05066,1903.7,1903.6,6.6479]
[1742217405278,1.05066,1903.7,1903.6,7.69862]
[1742217406686,1.05066,1903.7,1903.6,6.6479]
[1742217406991,1.05083,1903.4,1903.3,3.2078]
[1742217407186,1.05083,1903.4,1903.3,8.6031]
[1742217407991,1.05083,1903.4,1903.3,9.65399]
[1742217408490,1.05083,1903.4,1903.3,8.6031]
[1742217409295,1.05083,1903.4,1903.3,9.65399]
[1742217409791,1.05083,1903.4,1903.3,2.43919]
[1742217410188,2.62696,1903.5,1903.1,4.4261]
[1742217410382,1.05094,1903.2,1903.1,2.6726]
[1742217410989,1.051,1903.1,1903.0,29.126]
[1742217411193,1.05105,1903.0,1902.9,7.2138]
[1742217411597,1.05105,1903.0,1902.9,1.4543]
[1742217411792,1.05111,1902.9,1902.8,2.23145]
[1742217411995,1.05111,1902.9,1902.8,3.61525]
[1742217412295,1.05109,1903.0,1902.9,1.05109]
[1742217412494,1.05109,1903.0,1902.9,1.3838]
[1742217413096,1.05109,1903.0,1902.9,2.43491]
[1742217413396,1.05109,1903.0,1902.9,1.3838]
[1742217414095,1.05109,1903.0,1902.9,2.43491]
[1742217414295,1.05111,1902.9,1902.8,1.1803]
[1742217414797,1.05111,1902.9,1902.8,2.23146]
[1742217415695,1.05106,1903.0,1902.9,1.05105]
[1742217415897,1.05106,1903.0,1902.9,2.40745]
[1742217416397,1.05106,1903.0,1902.9,1.3564]
[1742217417889,1.05106,1903.0,1902.9,2.40751]
[1742217418194,0.00786658,1903.1,1903.0,1.05105]
[1742217418390,0.00786658,1903.1,1903.0,2.40715]
[1742217418795,0.00786658,1903.1,1903.0,6.41215]
[1742217419794,1.05105,1903.0,1902.9,3.2078]
[1742217420401,1.05105,1903.0,1902.9,4.25891]
[1742217420594,1.05105,1903.0,1902.9,3.2078]
[1742217421094,2.38545,1903.0,1902.9,1.3137]
[1742217422195,2.38545,1903.0,1902.9,2.36481]
[1742217422407,0.00786658,1903.1,1903.0,1.05105]
[1742217422698,0.00786658,1903.1,1903.0,2.36475]
[1742217423099,1.05886658,1903.1,1903.0,2.36475]
[1742217423294,1.05886658,1903.1,1903.0,1.3137]
[1742217423495,1.05111,1902.9,1902.8,4.3881]
[1742217423689,1.05111,1902.9,1902.8,5.43926]
[1742217424095,2.22641,1902.9,1902.8,4.3881]
[1742217424400,2.22641,1902.9,1902.8,5.43926]
[1742217424597,2.22641,1902.9,1902.8,6.88166]
[1742217424795,2.22641,1902.9,1902.8,5.8305]
[1742217424995,2.22641,1902.9,1902.8,6.88166]
[1742217426304,2.22641,1902.9,1902.8,2.6227]
[1742217426604,1.05127,1902.6,1902.5,30.3602]
[1742217426796,1.05127,1902.6,1902.5,31.8026]
[1742217427003,1.05127,1902.6,1902.5,29.137]
[1742217428504,2.6286,1902.4,1901.8,4.003]
[1742217428706,1.0516,1902.0,1901.9,3.70075]
[1742217428897,8.5155,1902.3,1901.9,3.70075]
[1742217429097,0.00786658,1902.1,1901.9,3.70075]
[1742217429300,1.0516,1902.0,1901.9,2.6491]
[1742217429605,2.4754,1902.0,1901.9,1.2536]
[1742217429803,1.4238,1902.0,1901.8,1.3955]
[1742217430006,1.0516,1902.0,1901.9,1.05166]
[1742217430399,1.05945658,1902.1,1902.0,1.0516]
[1742217430597,1.05945658,1902.1,1901.9,1.323]
[1742217430901,41.85945658,1902.1,1901.9,1.323]
[1742217431111,1.0516,1902.0,1901.9,1.323]
[1742217431296,41.85944658,1902.1,1901.9,2.37466]
[1742217431499,1.0516,1902.0,1901.9,1.323]
[1742217431801,1.05945658,1902.1,1902.0,1.0516]
[1742217432002,1.05162,1902.0,1901.9,1.05163]
[1742217432607,0.00786658,1902.1,1902.0,1.0516]
[1742217433298,1.0516,1902.0,1901.9,5.05362]
[1742217433499,1.4465,1902.0,1901.9,5.05362]
[1742217433804,2.4981,1902.0,1901.9,5.05362]
[1742217434000,2.4981,1902.0,1901.8,1.2536]
[1742217434001,1.05166,1901.9,1901.8,1.2536]
[1742217434306,1.05166,1901.9,1901.8,5.2556]
[1742217434494,1.05166,1901.9,1901.8,6.30731]
[1742217434698,2.49812,1902.0,1901.9,1.05166]
[1742217434893,1.05166,1901.9,1901.8,2.30528]
[1742217435103,2.49816,1901.9,1901.8,2.30528]
[1742217435306,2.49816,1901.9,1901.8,1.2536]
[1742217436006,2.49816,1901.9,1901.8,2.30531]
[1742217436306,2.49816,1901.9,1901.8,1.2536]
[1742217436998,1.05171,1901.8,1901.7,3.2078]
[1742217437197,2.6443,1901.8,1901.4,5.1982]
[1742217437403,1.05177,1901.7,1901.6,1.05179]
[1742217437603,2.50137,1901.7,1901.4,5.1982]
[1742217437800,1.05183,1901.6,1901.5,1.05188]
[1742217437994,1.05188,1901.5,1901.4,6.25012]
[1742217438199,2.50148,1901.5,1901.4,6.25012]
[1742217438508,2.50148,1901.5,1901.4,1.1962]
[1742217440811,1.05205,1901.2,1901.1,33.41988]
[1742217441008,1.05205,1901.2,1901.1,34.68518]
[1742217441208,1.05205,1901.2,1901.1,33.6331]
[1742217441804,1.05205,1901.2,1901.1,34.6852]
[1742217442004,2.44343,1901.3,1901.2,1.05205]
[1742217442420,1.05205,1901.2,1901.1,34.68516]
[1742217442704,2.44343,1901.3,1901.2,1.05205]
[1742217443211,1.3914,1901.3,1901.2,1.05205]
[1742217443508,2.6381,1901.4,1901.3,1.05199]
[1742217443711,4.001,1901.5,1901.1,36.26336]
[1742217443912,1.0519,1901.5,1901.4,1.05194]
[1742217444114,2.6418,1901.6,1901.5,1.05188]
[1742217444407,1.05178,1901.7,1901.6,1.05183]
[1742217444610,1.05181,1901.7,1901.6,1.05182]
[1742217445210,1.05183,1901.6,1901.5,2.26504]
[1742217445407,1.05183,1901.6,1901.5,1.2132]
[1742217446513,1.05194,1901.4,1901.3,4.001]
[1742217446903,3.70922,1901.5,1901.4,1.05194]
[1742217447109,1.05192,1901.5,1901.4,1.05194]
[1742217447309,1.05194,1901.4,1901.3,5.05295]
[1742217447805,1.05199,1901.3,1901.2,1.1723]
[1742217448010,2.45479,1901.3,1901.2,1.1723]
[1742217448515,2.45479,1901.3,1901.2,2.22435]
[1742217449216,1.05192,1901.5,1901.4,1.05191]
[1742217449411,1.05198,1901.4,1901.3,1.05197]
[1742217450315,1.05199,1901.3,1901.2,2.22431]
[1742217450714,1.05196,1901.4,1901.3,1.05195]
[1742217451016,1.05199,1901.3,1901.2,1.1723]
[1742217451215,2.37119,1901.3,1901.2,3.59435]
[1742217451610,2.37119,1901.3,1901.2,2.5423]
[1742217452015,2.37119,1901.3,1901.2,3.59435]
[1742217452216,2.62959,1901.6,1901.3,1.05196]
[1742217452416,2.46318,1901.5,1901.4,1.4293]
[1742217452618,2.46318,1901.5,1901.4,2.48124]
[1742217452822,2.46318,1901.5,1901.4,1.4293]
[1742217454524,2.46318,1901.5,1901.4,2.48124]
[1742217455824,2.46318,1901.5,1901.2,1.1723]
[1742217455825,1.05199,1901.3,1901.2,2.22428]
[1742217456124,1.05199,1901.3,1901.2,3.54628]
[1742217456323,1.05199,1901.3,1901.2,2.22428]
[1742217456523,4.3968,1901.3,1900.8,3.2078]
[1742217456725,1.05214,1901.1,1901.0,2.37414]
[1742217459120,1.05214,1901.1,1901.0,1.322]
[1742217460429,1.0521,1901.1,1901.0,2.37413]
[1742217460927,1.0521,1901.1,1901.0,1.322]
[1742217461129,1.0521,1901.1,1901.0,1.05216]
[1742217461327,1.05216,1901.0,1900.9,1.2063]
[1742217462028,1.05216,1901.0,1900.9,2.25847]
[1742217462432,1.05216,1901.0,1900.9,1.2063]
[1742217462727,2.6304,1901.0,1900.6,32.3818]
[1742217462931,2.63075,1900.8,1900.4,3.2078]
[1742217463132,1.05243,1900.5,1900.4,3.2078]
[1742217463423,1.05243,1900.5,1900.4,4.26029]
[1742217463631,2.42312,1900.6,1900.4,3.2078]
[1742217463932,1.2727,1900.9,1900.8,1.05227]
[1742217464122,1.06001747,1901.1,1901.0,1.05216]
[1742217464328,1.06001747,1901.1,1900.8,3.2078]
[1742217464329,2.42286,1901.0,1900.9,1.1571]
[1742217464528,2.42286,1901.0,1900.9,2.20931]
[1742217465227,2.42286,1901.0,1900.9,1.1571]
[1742217465931,1.05227,1900.8,1900.7,3.2078]
[1742217466428,1.3707,1900.9,1900.7,3.2078]
[1742217466429,2.42295,1900.9,1900.8,1.05227]
[1742217466725,1.3707,1900.9,1900.8,2.20707]
[1742217466930,2.4525,1901.0,1900.9,1.05221]
[1742217467433,1.4003,1901.0,1900.9,1.05221]
[1742217467831,2.45246,1901.0,1900.9,1.05221]
[1742217468031,1.05221,1900.9,1900.8,2.20703]
[1742217468331,1.05221,1900.9,1900.8,6.20303]
[1742217468636,2.45249,1901.0,1900.9,1.05221]
[1742217469731,1.05221,1900.9,1900.8,5.1508]
[1742217470028,2.44301,1900.9,1900.8,5.1508]
[1742217470229,2.44301,1900.9,1900.8,1.1548]
[1742217470429,1.05227,1900.8,1900.7,4.26011]
[1742217470633,2.44307,1900.8,1900.7,5.47941]
[1742217470933,2.44307,1900.8,1900.6,3.995]
[1742217470934,1.3908,1900.8,1900.5,32.3848]
[1742217471133,1.05238,1900.6,1900.5,32.3848]
[1742217471328,1.05238,1900.6,1900.5,3.2078]
[1742217471534,2.44318,1900.6,1900.5,3.2078]
[1742217472036,1.05243,1900.5,1900.4,5.04745]
[1742217472239,1.3908,1900.5,1900.4,5.04745]
[1742217472740,1.3908,1900.5,1900.4,8.25525]
[1742217473132,42.0666,1900.7,1900.4,7.2028]
[1742217473335,44.45204,1900.7,1900.6,1.05238]
[1742217473538,2.5997,1900.7,1900.6,4.26018]
[1742217474340,1.3331,1900.7,1900.6,4.26018]
[1742217474539,2.38542,1900.7,1900.6,4.26018]
[1742217475041,1.05238,1900.6,1900.5,3.994]
[1742217475242,2.38548,1900.6,1900.5,3.994]
[1742217475539,1.3331,1900.6,1900.5,5.04643]
[1742217475842,2.38548,1900.6,1900.5,3.994]
[1742217476031,2.38548,1900.6,1900.5,5.04643]
[1742217476235,1.3331,1900.6,1900.5,5.04643]
[1742217476630,2.49417,1900.8,1900.7,1.05232]
[1742217477540,1.05232,1900.7,1900.6,2.26553]
[1742217477841,2.49422,1900.7,1900.6,2.26553]
[1742217478041,1.4419,1900.7,1900.6,2.26553]
[1742217478638,1.4419,1900.7,1900.6,5.47333]
[1742217480541,1.1639,1900.9,1900.8,1.05227]
[1742217480847,1.4155,1901.0,1900.9,1.05221]
[1742217481038,1.4155,1901.0,1900.9,2.46261]
[1742217481636,2.62944,1901.7,1901.0,1.05216]
[1742217481833,2.23811,1901.5,1901.4,1.05194]
[1742217482047,1.4,1901.6,1901.5,1.05188]
[1742217482350,1.4,1901.6,1901.5,3.71558]
[1742217482844,2.45183,1901.6,1901.5,3.71558]
[1742217484245,1.4,1901.6,1901.5,3.71558]
[1742217484445,2.45183,1901.6,1901.5,3.71558]
[1742217484645,1.4,1901.6,1901.5,3.71558]
[1742217484939,2.45183,1901.6,1901.5,3.71558]
[1742217485146,1.4,1901.6,1901.5,3.71558]
[1742217486345,1.19408747,1901.7,1901.6,1.05183]
[1742217486537,1.05156,1902.1,1901.7,2.62943]
[1742217486741,1.05156,1902.1,1901.9,1.05162]
[1742217486950,1.3737,1902.0,1901.9,1.05162]
[1742217487455,2.4253,1902.0,1901.9,1.05162]
[1742217487647,1.3737,1902.0,1901.9,1.05162]
[1742217489444,0.00788747,1902.1,1902.0,1.0516]
[1742217489750,0.00788747,1902.1,1902.0,4.2594]
[1742217490742,1.26018747,1902.1,1902.0,4.2594]
[1742217491737,0.00788747,1902.1,1902.0,4.2594]
[1742217492750,1.41038747,1902.1,1902.0,4.2594]
[1742217493757,2.46193747,1902.1,1902.0,3.2078]
[1742217494146,2.46193747,1902.1,1902.0,4.2594]
[1742217494453,1.0517,1901.9,1901.8,7.1958]
[1742217494647,1.0517,1901.9,1901.8,8.24751]
[1742217495151,2.4225,1901.9,1901.8,8.24751]
[1742217495653,1.3708,1901.9,1901.8,8.24751]
[1742217496154,2.42246,1901.9,1901.8,8.24751]
[1742217496540,1.3708,1901.9,1901.8,8.24751]
[1742217496751,1.1862,1902.0,1901.9,1.05166]
[1742217496951,1.05943747,1902.1,1902.0,1.0516]
[1742217497247,0.00788747,1902.1,1902.0,1.0516]
[1742217497454,0.00788747,1902.1,1902.0,4.2594]